lending/lending_fUSD_20260211
["ID","MTS","AMOUNT","RATE_DAILY","PERIOD"]
[405090658,1770783040431,-500.0,0.00017999,2]
[405090659,1770783040440,-500.0,0.00017999,2]
[405090660,1770783040449,-500.0,0.00017999,2]
[405090661,1770783040459,-500.0,0.00017999,2]
[405090662,1770783040468,-500.0,0.00017999,2]
[405090663,1770783040477,-500.0,0.00017999,2]
[405090664,1770783040487,-15489.0,0.00018,2]
[405090665,1770783040497,-469526.9389024,0.00018,2]
[405090666,1770783040507,-1951497.26583361,0.00018,2]
[405090675,1770783045519,-517.72539534,0.00018,2]
[405090692,1770783093093,688.9,0.00011036,2]
[405090693,1770783093280,688.9,0.00011423,2]
[405090694,1770783093504,688.9,0.0001181,2]
[405090696,1770783230668,-688.9,0.00012197,2]
[405090699,1770783393019,-151.0,0.00012585,2]
[405090764,1770784231513,-537.9,0.00012585,2]
[405090766,1770784231523,-411.1,0.000126,2]
[405090768,1770784231533,-2366.22465724,0.00012774,2]
[405090769,1770784231542,-688.9,0.00012972,2]
[405090770,1770784231552,-175.95,0.0001307,2]
[405090771,1770784231561,-688.9,0.00013359,2]
[405090772,1770784231571,-688.9,0.00013746,2]
[405090773,1770784231581,-250.0,0.00013843,2]
[405090774,1770784231590,-254.23062935,0.00013843,2]
[405090775,1770784231600,-180.0,0.00013976,2]
[405090776,1770784231610,-1061.0,0.00013978,2]
[405090777,1770784231620,-4582.44931462,0.00013979,2]
[405090778,1770784231630,-688.9,0.00014133,2]
[405090779,1770784231640,-999.99,0.00014252,2]
[405090780,1770784231650,-4573.73,0.00014252,2]
[405090781,1770784231660,-150.0,0.0001452,2]
[405090782,1770784231670,-688.9,0.00014521,2]
[405090783,1770784231680,-9999.99,0.00014521,2]
[405090784,1770784231690,-150.99,0.00014521,2]
[405090785,1770784231699,-9999.99,0.00014521,2]
[405090786,1770784231708,-9999.99,0.00014521,2]
[405090787,1770784231718,-688.9,0.00014908,2]
[405090788,1770784231728,-166.66,0.00015198,2]
[405090789,1770784231738,-688.9,0.00015295,2]
[405090790,1770784231748,-4678.80690828,0.00015474,2]
[405090791,1770784231758,-166.66,0.00015518,2]
[405090792,1770784231769,-175.94,0.00015538,2]
[405090793,1770784231778,-150.0,0.00015638,2]
[405090794,1770784231788,-893.97,0.00015652,2]
[405090795,1770784231798,-688.9,0.00015682,2]
[405090796,1770784231807,-166.66,0.00015838,2]
[405090797,1770784231818,-688.9,0.00016069,2]
[405090798,1770784231828,-166.66,0.00016158,2]
[405090799,1770784231838,-200.0,0.00016357,2]
[405090800,1770784231848,-175.5,0.00016384,2]
[405090801,1770784231860,-688.9,0.00016457,2]
[405090802,1770784231869,-166.66,0.00016478,2]
[405090803,1770784231879,-2617.56,0.0001648,2]
[405090804,1770784231888,-1000.0,0.00016588,2]
[405090805,1770784231898,-250.0,0.00016628,2]
[405090806,1770784231909,-166.66,0.00016798,2]
[405090807,1770784231918,-217.21555665,0.000168,2]
[405090808,1770784231928,-688.9,0.00016844,2]
[405090809,1770784231943,-4967.87968966,0.00016969,2]
[405090810,1770784231954,-688.9,0.00017231,2]
[405090811,1770784231964,-688.9,0.00017618,2]
[405090812,1770784231973,-1242.0648,0.00017622,2]
[405090813,1770784231983,-1168.27565108,0.00017742,2]
[405090814,1770784231993,-2388.75446213,0.0001783,2]
[405090815,1770784232004,-526.616,0.0001789,2]
[405090816,1770784232014,-1000.0,0.000179,2]
[405090817,1770784232023,-622.72119258,0.000179,2]
[405090818,1770784232033,-2500.0,0.000179,2]
[405090819,1770784232043,-738.17732263,0.000179,2]
[405090820,1770784232053,-1245.62293508,0.000179,2]
[405090821,1770784232063,-419.9241125,0.000179,2]
[405090822,1770784232073,-202.43935991,0.000179,3]
[405090823,1770784232082,-1997.553627,0.000179,2]
[405090824,1770784232092,-188.27841096,0.0001799,2]
[405090825,1770784232101,-151.0,0.00017997,2]
[405090826,1770784232111,-300.0,0.00017999,2]
[405090827,1770784232121,-500.0,0.00017999,2]
[405090828,1770784232130,-500.0,0.00017999,2]
[405090829,1770784232140,-500.0,0.00017999,2]
[405090830,1770784232150,-500.0,0.00017999,2]
[405090831,1770784232159,-500.0,0.00017999,2]
[405090832,1770784232168,-500.0,0.00017999,2]
[405090833,1770784232178,-500.0,0.00017999,2]
[405090834,1770784232187,-500.0,0.00017999,2]
[405090835,1770784232198,-500.0,0.00017999,2]
[405090836,1770784232208,-500.0,0.00017999,2]
[405090837,1770784232218,-500.0,0.00017999,2]
[405090838,1770784232227,-434.04431233,0.00017999,2]
[405090839,1770784232237,-358.32105063,0.00017999,2]
[405090840,1770784232247,-500.0,0.00017999,2]
[405090841,1770784232257,-500.0,0.00017999,2]
[405090842,1770784232267,-500.0,0.00017999,2]
[405090843,1770784232277,-500.0,0.00017999,2]
[405090844,1770784232287,-500.0,0.00017999,2]
[405090845,1770784232298,-500.0,0.00017999,2]
[405090846,1770784232308,-511.6092506,0.00017999,2]
[405090847,1770784232322,-500.0,0.00017999,2]
[405090848,1770784232332,-500.0,0.00017999,2]
[405090849,1770784232341,-500.0,0.00017999,2]
[405090850,1770784232352,-500.0,0.00017999,2]
[405090851,1770784232363,-500.0,0.00017999,2]
[405090852,1770784232373,-500.0,0.00017999,2]
[405090853,1770784232383,-500.0,0.00017999,2]
[405090854,1770784232394,-500.0,0.00017999,2]
[405090855,1770784232403,-500.0,0.00017999,2]
[405090856,1770784232414,-500.0,0.00017999,2]
[405090857,1770784232423,-500.0,0.00017999,2]
[405090858,1770784232434,-250.0,0.00017999,2]
[405090859,1770784232445,-500.0,0.00017999,2]
[405090860,1770784232455,-500.0,0.00017999,2]
[405090861,1770784232465,-500.0,0.00017999,2]
[405090862,1770784232475,-181.1884548,0.00017999,2]
[405090863,1770784232485,-500.0,0.00017999,2]
[405090864,1770784232494,-327.05308505,0.00017999,2]
[405090865,1770784232506,-500.0,0.00017999,2]
[405090866,1770784232516,-500.0,0.00017999,2]
[405090867,1770784232525,-500.0,0.00017999,2]
[405090868,1770784232536,-500.0,0.00017999,2]
[405090869,1770784232546,-500.0,0.00017999,2]
[405090870,1770784232555,-500.0,0.00017999,2]
[405090871,1770784232565,-500.0,0.00017999,2]
[405090872,1770784232575,-15707.0,0.00018,2]
[405090873,1770784232585,-336161.56772117,0.00018,2]
[405090874,1770784232969,-653.90007245,0.00018,2]
[405090876,1770784237539,-485.78397766,0.00017999,2]
[405090877,1770784237549,-600.65552284,0.00018,2]
[405090878,1770784237595,-200351.63527826,0.00018,2]
[405090879,1770784237607,-68275.7953577,0.00018,2]
[405090880,1770784237619,-1650.0,0.00018,2]
[405090881,1770784237651,-1407.60412328,0.00018,2]
[405090895,1770784239648,-2346.86443089,0.00018,2]
[405090896,1770784239707,-1772612.06780309,0.00018,2]
[405090897,1770784239717,-3512.69239106,0.00018,2]
[405090898,1770784239726,-678525.8181241,0.00018,2]
[405090915,1770784244420,-132.90929156,0.000179,2]
[405090916,1770784244461,-71.53564256,0.000179,2]
[405090917,1770784244470,-4976.29484577,0.00018,2]
[405090919,1770784244625,-271.2376,0.00018,2]
[405090926,1770784245679,-2029.49,0.00018,2]
[405090927,1770784245697,-812.76,0.00018,2]
[405090928,1770784245710,-3650.65822,0.00018,2]
[405090962,1770784393995,-300.0,0.00015642,2]
[405091005,1770785431693,-451.666215,0.00014017,2]
[405091007,1770785431709,-443.66779283,0.00014017,2]
[405091008,1770785431721,-2331.81599217,0.00014017,2]
[405091009,1770785431731,-250.0,0.00015419,2]
[405091010,1770785431743,-613.97475082,0.00015419,2]
[405091012,1770785432076,-5530.0,0.000155,3]
[405091013,1770785432088,-300.0,0.00015641,2]
[405091014,1770785432102,-7382.94012603,0.00015642,2]
[405091015,1770785432113,-2372.08,0.00015642,2]
[405091016,1770785432123,-150.0,0.00015642,2]
[405091017,1770785432133,-2013.68443051,0.00015877,2]
[405091018,1770785432143,-5530.0,0.000163,5]
[405091019,1770785432153,-500.0,0.00016493,2]
[405091020,1770785432162,-500.0,0.00016749,2]
[405091021,1770785432172,-1497.03,0.00016789,2]
[405091022,1770785432181,-3118.09001897,0.00017016,2]
[405091023,1770785432191,-354.0,0.00017107,2]
[405091024,1770785432201,-300.85009479,0.00017206,2]
[405091025,1770785432211,-350.0,0.00017212,2]
[405091026,1770785432220,-360.73581248,0.0001751,2]
[405091027,1770785432230,-421.292,0.00017521,2]
[405091028,1770785432240,-150.99,0.00017521,2]
[405091029,1770785432250,-9999.99,0.00017521,2]
[405091030,1770785432260,-500.0,0.00017521,2]
[405091031,1770785432269,-500.0,0.00017521,2]
[405091032,1770785432279,-521.59178718,0.00017521,2]
[405091033,1770785432289,-221.37610742,0.00017582,2]
[405091034,1770785432302,-150.0,0.00017582,2]
[405091035,1770785432311,-176.19,0.000176,2]
[405091036,1770785432321,-10051.8493,0.00017622,2]
[405091037,1770785432330,-1497.03,0.00017629,2]
[405091038,1770785432340,-350.0,0.0001763,2]
[405091039,1770785432350,-150.0,0.00017637,2]
[405091040,1770785432360,-1655.05717237,0.0001764,2]
[405091041,1770785432371,-245.85501438,0.00017692,2]
[405091042,1770785432380,-206.85979037,0.00017725,2]
[405091043,1770785432390,-1000.0,0.000179,2]
[405091044,1770785432400,-533.76102222,0.000179,2]
[405091045,1770785432409,-6645.3555,0.000179,2]
[405091046,1770785432419,-14758.16458306,0.000179,2]
[405091047,1770785432429,-194.18021388,0.000179,2]
[405091048,1770785432438,-2500.0,0.000179,2]
[405091049,1770785432447,-24245.80282107,0.000179,2]
[405091050,1770785432457,-161.74741432,0.000179,2]
[405091051,1770785432467,-1453.22675759,0.000179,2]
[405091052,1770785432477,-228.33981204,0.000179,2]
[405091053,1770785432487,-225.45524246,0.00017937,2]
[405091054,1770785432500,-209.13309471,0.0001799,2]
[405091055,1770785432510,-151.0,0.00017997,2]
[405091056,1770785432519,-309.71991093,0.00017999,2]
[405091057,1770785432529,-500.0,0.00017999,2]
[405091058,1770785432538,-500.0,0.00017999,2]
[405091059,1770785432548,-500.0,0.00017999,2]
[405091060,1770785432558,-504.73417313,0.00017999,2]
[405091061,1770785432568,-386.78153467,0.00017999,2]
[405091062,1770785432578,-480.78367612,0.00017999,2]
[405091063,1770785432587,-500.0,0.00017999,2]
[405091064,1770785432596,-500.0,0.00017999,2]
[405091065,1770785432606,-500.0,0.00017999,2]
[405091066,1770785432616,-500.0,0.00017999,2]
[405091067,1770785432625,-500.0,0.00017999,2]
[405091068,1770785432635,-500.0,0.00017999,2]
[405091069,1770785432645,-500.0,0.00017999,2]
[405091070,1770785432655,-500.0,0.00017999,2]
[405091071,1770785432665,-500.0,0.00017999,2]
[405091072,1770785432675,-500.0,0.00017999,2]
[405091073,1770785432687,-500.0,0.00017999,2]
[405091074,1770785432696,-500.0,0.00017999,2]
[405091075,1770785432711,-500.0,0.00017999,2]
[405091076,1770785432720,-500.0,0.00017999,2]
[405091077,1770785432730,-159.53043996,0.00017999,2]
[405091078,1770785432739,-500.0,0.00017999,2]
[405091079,1770785432749,-500.0,0.00017999,2]
[405091080,1770785432760,-500.0,0.00017999,2]
[405091081,1770785432769,-500.0,0.00017999,2]
[405091082,1770785432781,-500.0,0.00017999,2]
[405091083,1770785432791,-500.0,0.00017999,2]
[405091084,1770785432800,-500.0,0.00017999,2]
[405091085,1770785432810,-500.0,0.00017999,2]
[405091086,1770785432819,-200.0,0.00017999,2]
[405091087,1770785432829,-12769.0,0.00018,2]
[405091088,1770785432838,-598154.60178954,0.00018,2]
[405091089,1770785432851,-1254.41808677,0.00018,2]
[405091090,1770785432866,-11020.86862714,0.00018,2]
[405091091,1770785432907,-2371.5,0.00018,2]
[405091096,1770785437723,-2944.77445898,0.00016606,2]
[405091097,1770785437780,-651.0,0.00016606,2]
[405091098,1770785437888,-301.22791929,0.00016606,2]
[405091143,1770785439772,-543.86762173,0.00016606,2]
[405091144,1770785439783,-1353.0915,0.0001754,2]
[405091145,1770785439793,-473.2452622,0.000179,2]
[405091146,1770785439803,-180.40899046,0.000179,2]
[405091147,1770785439813,-1352833.26307297,0.00018,2]
[405091148,1770785439823,-1099266.70187089,0.00018,2]
[405091149,1770785439880,-1687.5,0.00018,2]
[405091167,1770785443528,-966.3271354,0.000179,2]
[405091168,1770785443540,-821.19288876,0.000179,2]
[405091169,1770785443551,-132976.71544284,0.00018,2]
[405091170,1770785444484,-13534.2522222,0.00018,2]
[405091171,1770785444540,-31456.26347603,0.00018,2]
[405091178,1770785445662,-298.85,0.00018,2]
[405091179,1770785445718,-676.99,0.00018,2]
[405091180,1770785445984,-20312.6261535,0.00018,2]
[405091181,1770785445996,-9893.71191601,0.00018,2]
[405091197,1770786070140,177.14,0.00010142,2]
[405091201,1770786545980,-177.14,0.00012396,2]
[405091219,1770786604502,-150.0,0.00012396,2]
[405091225,1770786632121,-100.0,0.00012396,2]
[405091226,1770786632130,-187.11648452,0.00012396,2]
[405091227,1770786632141,-297.68306653,0.00012638,2]
[405091228,1770786632153,-1842.35245294,0.00012638,2]
[405091229,1770786632164,-250.0,0.00013012,2]
[405091230,1770786632175,-250.0,0.00013636,2]
[405091231,1770786632186,-1200.0,0.00013995,2]
[405091232,1770786632196,-268.78213444,0.00013996,2]
[405091233,1770786632209,-3050.53369286,0.00013996,2]
[405091234,1770786632219,-177.14,0.0001465,2]
[405091235,1770786632229,-1680.0,0.00015395,2]
[405091236,1770786632240,-250.0,0.00015459,2]
[405091237,1770786632250,-300.0,0.00015955,2]
[405091238,1770786632260,-200.81,0.00015956,2]
[405091239,1770786632270,-1877.05774785,0.00016713,2]
[405091240,1770786632282,-710.0,0.00016713,2]
[405091241,1770786632294,-1911.53838729,0.00016713,2]
[405091242,1770786632304,-177.14,0.00016904,2]
[405091243,1770786632314,-2351.0,0.00016934,2]
[405091244,1770786632325,-151.0,0.00017051,2]
[405091245,1770786632335,-412679.67476462,0.00017054,2]
[405091246,1770786632348,-231444.74129864,0.00017054,2]
[405091247,1770786632364,-97615.27803674,0.00017054,2]
[405091248,1770786632374,-236.26,0.000171,2]
[405091249,1770786632384,-500.0,0.00017132,2]
[405091250,1770786632394,-500.0,0.00017132,2]
[405091251,1770786632403,-500.0,0.00017132,2]
[405091252,1770786632413,-500.0,0.00017132,2]
[405091253,1770786632423,-150.99,0.00017154,2]
[405091254,1770786632433,-9999.99,0.00017154,2]
[405091255,1770786632443,-1000.0,0.00017155,2]
[405091256,1770786632453,-277.35679052,0.00017346,2]
[405091257,1770786632464,-500.0,0.00017425,2]
[405091258,1770786632474,-350.0,0.00017433,2]
[405091259,1770786632484,-350.0,0.00017445,2]
[405091260,1770786632494,-420.0,0.00017445,2]
[405091261,1770786632504,-166.68,0.00017553,2]
[405091262,1770786632514,-157.5,0.000176,2]
[405091263,1770786632523,-2012.0,0.000176,2]
[405091264,1770786632533,-1103.37144825,0.0001764,2]
[405091265,1770786632543,-268.23405294,0.00017688,2]
[405091266,1770786632553,-1375.30455726,0.00017699,2]
[405091267,1770786632562,-1375.30455718,0.00017721,2]
[405091268,1770786632572,-1375.30455718,0.00017744,2]
[405091269,1770786632582,-1375.30455718,0.00017766,2]
[405091270,1770786632591,-10210.0,0.00017782,2]
[405091271,1770786632601,-151.0,0.00017788,2]
[405091272,1770786632611,-151.0,0.00017788,2]
[405091273,1770786632620,-169.49410949,0.00017788,2]
[405091274,1770786632629,-1375.30455718,0.00017788,2]
[405091275,1770786632638,-3538.49718537,0.00017799,2]
[405091276,1770786632647,-1375.30455718,0.00017811,2]
[405091277,1770786632657,-1375.30455718,0.00017833,2]
[405091278,1770786632666,-1375.30455718,0.00017855,2]
[405091279,1770786632676,-500.0,0.00017873,2]
[405091280,1770786632685,-1375.30455718,0.00017878,2]
[405091281,1770786632694,-161.74741432,0.00017898,2]
[405091282,1770786632703,-6733.1643,0.00017898,2]
[405091283,1770786632713,-1000.0,0.000179,2]
[405091284,1770786632722,-479.609,0.000179,2]
[405091285,1770786632731,-457.50944766,0.000179,2]
[405091286,1770786632742,-1375.30455718,0.000179,2]
[405091287,1770786632752,-1191.68001612,0.000179,2]
[405091288,1770786632761,-968.8178384,0.000179,2]
[405091289,1770786632771,-1004.39255606,0.000179,2]
[405091290,1770786632781,-500.0,0.000179,2]
[405091291,1770786632796,-193.26661435,0.000179,2]
[405091292,1770786632817,-576.97542512,0.00017918,2]
[405091293,1770786632839,-500.0,0.00017973,2]
[405091294,1770786632857,-500.0,0.00017973,2]
[405091295,1770786632869,-500.0,0.00017973,2]
[405091296,1770786632879,-161.48732342,0.00017973,2]
[405091297,1770786632889,-500.0,0.00017973,2]
[405091298,1770786632898,-285.00906658,0.00017973,2]
[405091299,1770786632907,-377.4614152,0.00017973,2]
[405091300,1770786632917,-500.0,0.00017973,2]
[405091301,1770786632927,-500.0,0.00017973,2]
[405091302,1770786632936,-151.0,0.00017995,2]
[405091303,1770786632945,-155.20645213,0.00017995,2]
[405091304,1770786632955,-242.79553417,0.00017997,2]
[405091305,1770786632964,-346.6836934,0.00017998,2]
[405091306,1770786632973,-24768.22210571,0.00017998,2]
[405091307,1770786632986,-59977.14209399,0.00017998,2]
[405091308,1770786632998,-111455.64056198,0.00017998,2]
[405091309,1770786633009,-405.23147994,0.00017998,2]
[405091310,1770786633025,-387.105,0.00017998,2]
[405091311,1770786633038,-179.83805868,0.00017998,2]
[405091312,1770786633048,-395.74962002,0.00017998,2]
[405091313,1770786633062,-4809.83345824,0.00017998,2]
[405091314,1770786633074,-412.77728069,0.00017998,2]
[405091315,1770786633086,-497.55228091,0.00017998,2]
[405091318,1770786638092,-157.74842074,0.00017873,2]
[405091319,1770786638104,-152.22654136,0.000179,2]
[405091320,1770786638117,-500.0,0.00017973,2]
[405091321,1770786638128,-533.47352896,0.00017998,2]
[405091478,1770786640272,-1001834.3288,0.00016613,2]
[405091481,1770786640285,-157.74842073,0.00017886,2]
[405091503,1770786640533,-383462.71388678,0.00017998,2]
[405091504,1770786640610,-11220.2561804,0.00017998,2]
[405091505,1770786640620,-487.0,0.00017998,2]
[405091506,1770786640630,-487.0,0.00017998,2]
[405091507,1770786640639,-487.0,0.00017998,2]
[405091508,1770786640649,-487.0,0.00017998,2]
[405091509,1770786640658,-487.0,0.00017998,2]
[405091510,1770786640668,-487.0,0.00017998,2]
[405091511,1770786640677,-487.0,0.00017998,2]
[405091512,1770786640687,-487.0,0.00017998,2]
[405091513,1770786640697,-487.0,0.00017998,2]
[405091514,1770786640706,-487.0,0.00017998,2]
[405091515,1770786640715,-506.59,0.00017998,2]
[405091516,1770786640725,-337.09225134,0.00017998,2]
[405091517,1770786640734,-302.372,0.00017999,2]
[405091518,1770786640744,-270.74707427,0.00017999,2]
[405091519,1770786640753,-500.0,0.00017999,2]
[405091520,1770786640762,-500.0,0.00017999,2]
[405091521,1770786640771,-500.0,0.00017999,2]
[405091522,1770786640780,-500.0,0.00017999,2]
[405091523,1770786640789,-500.0,0.00017999,2]
[405091524,1770786640799,-500.0,0.00017999,2]
[405091525,1770786640808,-500.0,0.00017999,2]
[405091526,1770786640818,-500.0,0.00017999,2]
[405091527,1770786640827,-500.0,0.00017999,2]
[405091528,1770786640836,-500.0,0.00017999,2]
[405091529,1770786640845,-500.0,0.00017999,2]
[405091530,1770786640855,-500.0,0.00017999,2]
[405091531,1770786640865,-375.50139239,0.00017999,2]
[405091532,1770786640875,-500.0,0.00017999,2]
[405091533,1770786640884,-500.0,0.00017999,2]
[405091534,1770786640893,-1042416.26919061,0.00018,2]
[405091554,1770786645967,-157.74842073,0.00017898,2]
[405091555,1770786645978,-1198.99957927,0.00018,2]
[405091638,1770787832040,-250.0,0.00015,2]
[405091639,1770787832050,-272.43722123,0.00015225,2]
[405091640,1770787832098,-1786.37654915,0.00015225,2]
[405091641,1770787832107,-1200.0,0.00015641,2]
[405091642,1770787832117,-300.0,0.00015641,2]
[405091643,1770787832126,-183.0,0.00015641,2]
[405091644,1770787832136,-138089.69815921,0.00015642,2]
[405091654,1770787838055,-476.33151153,0.00015642,2]
[405091655,1770787838168,-1386.35636678,0.00015642,2]
[405091656,1770787838279,-677.07,0.00015642,2]
[405091659,1770787840485,-94895.84396248,0.00015642,2]
[405091660,1770787840497,-168.47553885,0.00015856,2]
[405091661,1770787840507,-1010.6773794,0.00015956,2]
[405091662,1770787840517,-1896.24,0.0001598,2]
[405091663,1770787840526,-166.66,0.00016122,2]
[405091664,1770787840536,-5000.0,0.000162,5]
[405091665,1770787840545,-168.47553881,0.00016265,2]
[405091666,1770787840555,-166.66,0.00016462,2]
[405091667,1770787840565,-240.02,0.00016466,2]
[405091668,1770787840574,-3189.96267134,0.00016556,2]
[405091669,1770787840584,-168.47553881,0.00016674,2]
[405091670,1770787840593,-1896.24,0.00016779,2]
[405091672,1770787840603,-517.75,0.000168,2]
[405091674,1770787840612,-166.66,0.00016801,2]
[405091676,1770787840622,-200.0,0.00016933,2]
[405091678,1770787840631,-150.99,0.00016933,2]
[405091680,1770787840640,-9999.99,0.00016933,2]
[405091682,1770787840650,-5347.89,0.00016933,2]
[405091684,1770787840659,-4405.98,0.00016933,2]
[405091686,1770787840668,-1000.0,0.00016954,2]
[405091688,1770787840677,-194.77562926,0.00016982,2]
[405091690,1770787840687,-3096.18503726,0.00016982,2]
[405091692,1770787840696,-173.61,0.00016986,2]
[405091694,1770787840706,-286822.84613694,0.00017,2]
[405091696,1770787840715,-168.47553881,0.00017082,2]
[405091698,1770787840725,-194.77562921,0.00017084,2]
[405091700,1770787840741,-175.94,0.00017105,2]
[405091702,1770787840759,-166.66,0.00017141,2]
[405091704,1770787840769,-194.77562921,0.00017186,2]
[405091706,1770787840778,-194.77562921,0.00017288,2]
[405091708,1770787840787,-194.77562921,0.0001739,2]
[405091710,1770787840799,-1332.6033079,0.00017477,2]
[405091712,1770787840808,-8814.5999827,0.00017477,2]
[405091714,1770787840817,-66211.3828773,0.00017477,2]
[405091716,1770787840827,-42274.5143414,0.00017477,2]
[405091718,1770787840836,-166.66,0.0001748,2]
[405091720,1770787840845,-168.47553881,0.00017491,2]
[405091722,1770787840854,-194.77562921,0.00017492,2]
[405091723,1770787840864,-1896.24,0.00017578,2]
[405091724,1770787840874,-194.77562921,0.00017594,2]
[405091725,1770787840883,-368.79128323,0.000176,2]
[405091726,1770787840893,-1319.71879104,0.0001764,2]
[405091727,1770787840902,-700.0,0.00017672,2]
[405091728,1770787840911,-194.77562921,0.00017696,2]
[405091729,1770787840920,-194.77562921,0.00017798,2]
[405091730,1770787840930,-160.64,0.00017799,2]
[405091731,1770787840944,-9272.91387758,0.000178,3]
[405091732,1770787840954,-166.66,0.00017819,2]
[405091733,1770787840964,-500.0,0.00017873,2]
[405091734,1770787840977,-383.687,0.00017899,2]
[405091735,1770787840992,-392.15095512,0.000179,2]
[405091736,1770787841007,-168.47553881,0.000179,2]
[405091737,1770787841019,-180.40899046,0.000179,2]
[405091738,1770787841033,-152.22654135,0.000179,2]
[405091739,1770787841049,-194.77562921,0.000179,2]
[405091740,1770787841062,-645.87855892,0.000179,2]
[405091741,1770787841077,-794.45334408,0.000179,2]
[405091742,1770787841091,-3967.62754091,0.00017922,2]
[405091743,1770787841105,-270.80046435,0.00017973,2]
[405091744,1770787841117,-500.0,0.00017973,2]
[405091745,1770787841128,-500.0,0.00017973,2]
[405091746,1770787841142,-500.0,0.00017973,2]
[405091747,1770787841155,-500.0,0.00017973,2]
[405091748,1770787841169,-500.0,0.00017973,2]
[405091749,1770787841182,-500.0,0.00017973,2]
[405091750,1770787841196,-225.48317433,0.00017982,2]
[405091751,1770787841210,-337.09225134,0.00017999,2]
[405091752,1770787841224,-8174.0,0.00018,2]
[405091753,1770787841238,-491944.88009453,0.00018,2]
[405091755,1770787846457,-1356.48,0.00017937,2]
[405091764,1770788435924,154.83,0.00010212,2]
[405091765,1770788436115,154.83,0.00010698,2]
[405091766,1770788436308,154.83,0.00011184,2]
[405091767,1770788436524,154.83,0.00011671,2]
[405091768,1770788436730,154.83,0.00012157,2]
[405091769,1770788683399,11449.16262452,0.00022,120]
[405091787,1770789032247,-154.83,0.00012643,2]
[405091788,1770789032257,-250.0,0.00012886,2]
[405091789,1770789032267,-154.83,0.00013129,2]
[405091790,1770789032277,-154.83,0.00013616,2]
[405091791,1770789032287,-525.20351038,0.00013907,2]
[405091792,1770789032297,-250.0,0.00013907,2]
[405091793,1770789032308,-306.72363293,0.00013907,2]
[405091794,1770789032319,-154.83,0.00014102,2]
[405091795,1770789032330,-2689.29,0.00014439,2]
[405091796,1770789032341,-154.83,0.00014588,2]
[405091797,1770789032351,-154.83,0.00015074,2]
[405091798,1770789032361,-154.83,0.00015561,2]
[405091799,1770789032371,-250.0,0.00015767,2]
[405091800,1770789032381,-172.12,0.00015921,2]
[405091801,1770789032392,-154.83,0.00016047,2]
[405091802,1770789032403,-11310.34,0.00016204,2]
[405091803,1770789032413,-500.0,0.00016253,2]
[405091804,1770789032423,-150.0,0.00016275,2]
[405091805,1770789032433,-1852.42,0.00016422,2]
[405091806,1770789032442,-154.83,0.00016533,2]
[405091807,1770789032451,-3240.0,0.00016627,2]
[405091808,1770789032461,-1000.0,0.00016686,2]
[405091809,1770789032471,-166.66,0.00016734,2]
[405091811,1770789032481,-154.83,0.0001702,2]
[405091813,1770789032492,-500.0,0.00017179,2]
[405091814,1770789032502,-350.0,0.00017202,2]
[405091815,1770789032512,-1878.04,0.00017202,2]
[405091816,1770789032522,-150.0,0.00017225,2]
[405091818,1770789032532,-350.0,0.00017251,2]
[405091819,1770789032542,-150.0,0.00017325,2]
[405091821,1770789032551,-150.0,0.00017325,2]
[405091823,1770789032561,-166.66,0.00017425,2]
[405091824,1770789032571,-700.0,0.00017467,2]
[405091826,1770789032582,-1242.0648,0.00017518,2]